bitfinex/quotes_ETHUSD_20241119
["timestamp","ask_amount","ask_price","bid_price","bid_amount"]
[1732019973971,3.18197,3142.8,3142.4,0.55]
[1732019974264,0.05314516,3142.7,3142.2,0.55]
[1732019974753,3.18213,3142.6,3142.2,0.55]
[1732019974953,6.36429,3142.6,3142.1,0.55]
[1732019975127,3.18244,3142.3,3142.0,0.7533]
[1732019975328,3.18229,3142.4,3142.0,0.7533]
[1732019975547,3.85622208,3142.6,3142.0,0.7533]
[1732019975548,0.05303547,3142.2,3142.0,0.7533]
[1732019975767,3.18239,3142.3,3142.0,0.7533]
[1732019975967,0.05301984,3142.1,3142.0,0.7533]
[1732019976282,3.85622208,3142.6,3142.0,0.7533]
[1732019976283,3.18213,3142.6,3142.1,0.55]
[1732019977340,3.18213,3142.6,3142.1,3.73255]
[1732019978314,3.18223,3142.5,3142.1,0.55]
[1732019978457,3.18213,3142.6,3142.1,3.73257]
[1732019978978,0.05306749,3142.5,3142.1,3.73257]
[1732019979186,0.05306749,3142.5,3142.1,0.55]
[1732019979344,0.05306749,3142.5,3142.0,0.7533]
[1732019979345,3.18254,3142.2,3142.0,0.7533]
[1732019979762,0.0530026,3142.1,3142.0,0.7533]
[1732019979992,0.0530026,3142.1,3141.7,3.98452]
[1732019980139,0.0530026,3142.1,3141.7,4.682972]
[1732019980342,3.18239,3142.3,3141.7,4.682972]
[1732019980572,0.05298697,3142.0,3141.8,0.55]
[1732019980882,0.05297134,3141.9,3141.8,3.73286]
[1732019981062,3.18234,3142.4,3141.8,3.73286]
[1732019981267,0.05303386,3142.3,3142.0,0.55]
[1732019981841,3.18255,3142.2,3141.8,0.55]
[1732019982095,3.18255,3142.2,3141.4,0.8033]
[1732019982096,3.18288,3141.8,3141.4,0.8033]
[1732019982382,3.18319,3141.5,3141.0,0.8033]
[1732019982595,3.1835,3141.2,3141.0,0.8033]
[1732019982746,3.1835,3141.2,3140.7,3.97839]
[1732019982943,0.05280269,3141.1,3140.7,4.615209]
[1732019983433,0.05280269,3141.1,3140.7,4.615149]
[1732019983610,0.05280269,3141.1,3140.9,3.18372]
[1732019983789,3.1832,3141.5,3140.9,3.18372]
[1732019984280,3.23616657,3141.4,3140.8,0.55]
[1732019984481,0.05281657,3141.4,3141.0,3.18368]
[1732019984693,3.18294,3141.8,3141.2,0.55]
[1732019984898,3.18322,3141.5,3141.2,0.55]
[1732019985132,0.05277729,3141.4,3141.0,0.55]
[1732019985287,3.18349,3141.3,3140.7,3.9784]
[1732019985484,0.05274601,3141.2,3140.7,3.9784]
[1732019985787,0.05274601,3141.2,3140.7,3.97834]
[1732019986014,3.23630601,3141.2,3140.7,3.97834]
[1732019986222,0.05274601,3141.2,3140.7,3.97834]
[1732019986724,0.05274601,3141.2,3140.9,3.18378]
[1732019986925,3.18323,3141.5,3140.9,3.18378]
[1732019987147,0.05102193,3141.4,3141.0,0.55]
[1732019987289,0.05102193,3141.4,3141.2,0.55]
[1732019987488,3.18289,3141.8,3141.3,3.18338]
[1732019987832,0.05106548,3141.7,3141.3,3.97688]
[1732019988119,0.05106548,3141.7,3141.2,0.55]
[1732019988120,3.18316,3141.6,3141.1,0.55]
[1732019988319,6.36633,3141.6,3141.0,3.7336]
[1732019988520,0.05103756,3141.5,3141.0,0.55]
[1732019988720,0.05103756,3141.5,3141.2,0.55]
[1732019989086,0.395309,3141.8,3141.2,0.55]
[1732019989420,0.05106883,3141.7,3141.3,3.18339]
[1732019989823,3.18274,3142.0,3141.5,3.18312]
[1732019989981,0.0510575,3141.6,3141.5,3.18312]
[1732019990321,3.18259,3142.1,3141.6,0.55]
[1732019990528,0.05112434,3142.0,3141.6,0.55]
[1732019990965,0.05112434,3142.0,3141.7,3.18289]
[1732019991234,0.05112434,3142.0,3141.7,3.556179]
[1732019991533,3.18236,3142.4,3141.7,3.556179]
[1732019991534,0.05112836,3141.9,3141.8,0.55]
[1732019991731,0.05112836,3141.9,3141.6,0.55]
[1732019991897,3.87510398,3142.5,3141.8,0.55]
[1732019992227,3.87510398,3142.5,3141.6,0.55]
[1732019992228,3.18265,3142.1,3141.6,0.55]
[1732019993432,0.3875104,3142.4,3141.8,0.55]
[1732019993640,3.18234,3142.4,3141.9,3.18275]
[1732019993939,3.18234,3142.4,3141.8,0.55]
[1732019993940,3.23359193,3142.3,3141.8,0.55]
[1732019994152,3.63593112,3142.3,3141.8,0.55]
[1732019994445,0.05121193,3142.3,3142.0,3.18267]
[1732019994762,3.18203,3142.7,3142.1,0.55]
[1732019994938,0.0512011,3142.2,3142.1,3.73251]
[1732019995140,0.399263,3142.6,3142.1,3.73251]
[1732019995356,3.18246,3142.3,3142.0,0.55]
[1732019995503,3.500726,3142.2,3141.8,0.55]
[1732019995699,3.18248,3142.2,3141.8,0.55]
[1732019995938,0.05118882,3142.1,3141.8,0.55]
[1732019996141,0.05118882,3142.1,3141.5,3.18315]
[1732019996142,3.23384882,3142.1,3141.6,0.55]
[1732019996311,3.18281,3141.9,3141.4,4.25708]
[1732019996517,0.05114241,3141.8,3141.4,4.25708]
[1732019996721,0.05114241,3141.8,3141.4,1.0738]
[1732019997103,3.1828,3141.9,3141.4,4.25705]
[1732019997299,0.05114337,3141.8,3141.3,3.18334]
[1732019997505,0.05114337,3141.8,3141.4,0.55]
[1732019997704,0.05114337,3141.8,3141.4,3.73323]
[1732019998031,0.05114337,3141.8,3141.7,3.18299]
[1732019998233,0.05114337,3141.8,3141.7,4.50969]
[1732019998614,6.36428,3142.6,3141.9,3.73272]
[1732019998896,3.18223,3142.5,3141.9,6.91545]
[1732019999055,3.18223,3142.5,3141.9,3.73272]
[1732019999256,3.18223,3142.5,3142.0,3.18266]
[1732019999561,3.18185,3142.9,3142.3,3.18236]
[1732019999977,0.8239,3143.0,3142.2,1.3627]
[1732020000296,0.8239,3143.2,3142.8,3.18187]
[1732020000517,0.8239,3143.2,3142.2,1.3627]
[1732020000518,0.8239,3143.2,3142.6,3.18202]
[1732020000656,3.18158,3143.1,3142.6,6.36403]
[1732020001008,3.18149,3143.2,3142.6,3.18205]
[1732020001289,0.8239,3143.4,3142.9,3.18176]
[1732020001599,3.18142,3143.3,3142.8,3.18185]
[1732020001815,3.18142,3143.3,3142.7,1.3627]
[1732020001816,0.8239,3143.4,3143.0,3.18165]
[1732020001983,4.00517,3143.4,3142.8,3.18178]
[1732020002156,3.18139,3143.3,3142.8,3.18178]
[1732020002778,1.542538,3143.4,3142.8,3.18178]
[1732020002984,3.18188,3142.8,3142.4,0.7796]
[1732020003167,3.84160398,3142.8,3142.1,0.7796]
[1732020003366,3.18225,3142.5,3141.8,0.7796]
[1732020003568,3.1824,3142.3,3141.8,3.96245]
[1732020003767,3.18225,3142.5,3141.8,3.96245]
[1732020004004,3.18225,3142.5,3141.9,3.18277]
[1732020004518,3.5661904,3142.7,3142.0,3.18267]
[1732020004669,3.18208,3142.6,3142.0,3.18262]
[1732020004869,4.24106744,3142.6,3142.0,3.18262]
[1732020005303,3.18219,3142.5,3141.9,0.55]
[1732020005623,0.7563,3142.8,3141.9,0.55]
[1732020005624,7.02350398,3142.8,3141.9,0.55]
[1732020005784,3.18197,3142.7,3141.8,0.7796]
[1732020005980,3.97164,3142.2,3141.6,3.18302]
[1732020006185,3.97164,3142.2,3141.5,3.8132]
[1732020006385,3.97164,3142.2,3141.6,3.18299]
[1732020006576,3.18232,3142.4,3141.6,3.18309]
[1732020006774,3.18238,3142.3,3141.7,3.18292]
[1732020007106,6.36468,3142.4,3141.8,3.18281]
[1732020007309,3.18232,3142.4,3141.8,3.18281]
[1732020007515,0.7023504,3142.7,3142.3,3.18236]
[1732020007678,3.99453,3142.8,3142.1,3.18252]
[1732020007873,0.399453,3142.7,3142.1,3.18252]
[1732020008074,0.399453,3142.7,3142.3,3.18235]
[1732020008287,3.99453,3142.8,3142.3,3.18235]
[1732020008817,3.18167,3143.0,3142.5,3.18211]
[1732020009002,0.05129742,3142.7,3142.6,3.97907]
[1732020009177,3.18183,3142.9,3142.3,3.18231]
[1732020009382,0.05130412,3142.7,3142.4,0.55]
[1732020009607,0.05131974,3142.8,3142.4,0.55]
[1732020009818,3.96918,3143.4,3142.7,3.18197]
[1732020010001,3.96918,3143.4,3142.8,3.18184]
[1732020010211,0.7879,3143.4,3142.9,3.18176]
[1732020010526,0.7671,3143.7,3143.1,3.18151]
[1732020011216,0.394801,3143.6,3143.2,3.18144]
[1732020011720,3.575861,3143.6,3143.0,3.73161]
[1732020012021,3.18117,3143.5,3143.0,0.55]
[1732020012219,0.4342961,3143.5,3143.0,0.55]
[1732020012382,3.18127,3143.4,3142.7,3.18195]
[1732020012583,3.18106,3143.6,3142.6,0.55]
[1732020012819,3.18132,3143.4,3142.7,3.18188]
[1732020013116,3.18132,3143.4,3142.8,3.18181]
[1732020013787,3.18132,3143.4,3142.7,3.18188]
[1732020013788,3.18132,3143.4,3142.9,3.18176]
[1732020014437,3.18148,3143.2,3142.6,6.73199]
[1732020014603,0.38846664,3143.3,3142.6,0.55]
[1732020014805,3.56983664,3143.3,3142.8,0.55]
[1732020015024,3.18137,3143.3,3142.8,3.73185]
[1732020015227,3.18137,3143.3,3142.8,0.55]
[1732020015421,3.18148,3143.2,3142.8,0.55]
[1732020016527,3.56978664,3143.4,3142.8,3.73181]
[1732020017032,3.18137,3143.3,3142.8,3.73181]
[1732020017918,3.18147,3143.2,3142.7,0.55]
[1732020018135,3.95057,3143.2,3142.8,0.55]
[1732020018344,3.18159,3143.1,3142.8,0.55]
[1732020018654,3.18159,3143.1,3141.2,3.1834]
[1732020018655,3.18177,3142.9,3142.3,3.18233]
[1732020018792,3.18195,3142.8,3142.3,3.18233]
[1732020018988,3.18177,3142.9,3142.3,3.18233]
[1732020019403,3.1816,3143.1,3142.2,0.8263]
[1732020019604,0.7691,3143.2,3142.7,3.18191]
[1732020020130,3.95065,3143.2,3142.7,3.18191]
[1732020020333,3.18159,3143.1,3142.6,3.73204]
[1732020020499,3.18159,3143.1,3142.6,0.55]
[1732020020700,3.18159,3143.1,3142.6,3.73202]
[1732020021302,3.18139,3143.3,3142.8,3.18186]
[1732020021528,3.893699,3143.3,3142.7,3.95207]
[1732020021690,3.893699,3143.3,3142.7,3.95201]
[1732020021900,3.18149,3143.2,3142.7,3.95201]
[1732020022127,0.712309,3143.3,3142.8,3.18187]
[1732020022344,0.7605,3143.4,3142.9,3.18172]
[1732020022537,3.18122,3143.5,3143.0,3.18165]
[1732020022744,6.36246,3143.5,3143.0,3.18165]
[1732020022895,3.18122,3143.5,3143.0,3.18165]
[1732020023097,3.18122,3143.5,3142.8,3.18186]
[1732020023333,6.36245,3143.5,3142.9,3.18176]
[1732020023536,3.18128,3143.4,3142.9,3.18176]
[1732020023798,0.05143328,3143.3,3142.9,3.18176]
[1732020024207,3.18155,3143.2,3142.8,0.55]
[1732020024414,0.05144781,3143.2,3142.8,0.55]
[1732020024596,0.05144781,3143.2,3142.6,3.93647]
[1732020024597,0.05144781,3143.2,3143.1,4.48607]
[1732020024798,0.05144781,3143.2,3143.1,4.934677]
[1732020025101,3.18103,3143.7,3143.2,3.18145]
[1732020025437,0.0498209,3143.6,3143.2,3.18145]
[1732020025935,0.0498209,3143.6,3143.3,0.55]
[1732020026140,3.98615,3144.1,3143.5,3.18116]
[1732020026340,3.98607,3144.1,3143.3,3.91677]
[1732020026564,3.98607,3144.1,3143.6,0.55]
[1732020027216,3.18067,3144.0,3143.6,0.55]
[1732020027523,0.8055,3144.1,3143.6,0.55]
[1732020027734,3.18067,3144.0,3143.4,0.55]
[1732020028038,3.18067,3144.0,3143.3,3.18132]
[1732020028039,3.18087,3143.8,3143.3,3.18132]
[1732020028585,3.18087,3143.8,3143.2,0.55]
[1732020029052,3.18112,3143.6,3143.2,0.55]
[1732020030864,3.18112,3143.6,3143.1,0.7545]
[1732020031177,0.8055,3144.1,3143.1,0.7545]
[1732020031302,0.8055,3144.1,3143.4,3.0]
[1732020031499,3.18036,3144.3,3143.7,0.8036]
[1732020032342,3.18036,3144.3,3143.7,3.98449]
[1732020032539,3.18036,3144.3,3143.8,3.18085]
[1732020033990,3.18036,3144.3,3143.7,0.8036]
[1732020034196,6.3608,3144.3,3143.7,0.8036]
[1732020034356,3.18036,3144.3,3143.7,3.98453]
[1732020034559,3.9743,3144.5,3143.7,0.8036]
[1732020034560,3.18047,3144.2,3143.7,0.8036]
[1732020036151,6.36062,3144.4,3143.7,3.18094]
[1732020036316,3.18027,3144.4,3143.8,3.18079]
[1732020037107,0.7941,3144.5,3144.0,0.7747]
[1732020037277,0.8262,3144.8,3144.4,3.18018]
[1732020037484,1.47419584,3145.1,3144.5,3.18011]
[1732020037705,3.17982,3144.9,3144.4,0.55]
[1732020037988,3.17982,3144.9,3144.3,3.1803]
[1732020038796,1.24388565,3145.1,3144.5,3.18014]
[1732020038797,0.8262,3145.1,3144.5,3.18014]
[1732020038999,0.07494682,3144.8,3144.6,3.18002]
[1732020039197,0.8262,3145.1,3144.6,3.18002]
[1732020039524,3.98291,3145.3,3144.7,3.72991]
[1732020039987,3.98291,3145.3,3144.6,3.72999]
[1732020040518,3.17954,3145.1,3144.6,3.72999]
[1732020040968,3.17954,3145.1,3144.6,3.17999]
[1732020041574,3.17966,3145.0,3144.5,0.8174]
[1732020042512,3.17947,3145.2,3144.6,3.18003]
[1732020043316,3.17947,3145.2,3144.7,0.55]
[1732020043700,3.17947,3145.2,3144.6,0.55]
[1732020043908,0.8035,3145.3,3144.6,3.73003]
[1732020044234,3.98292,3145.3,3144.7,3.17994]
[1732020044723,0.8035,3145.3,3144.8,3.17984]
[1732020044944,3.98285,3145.3,3144.6,7.364757]
[1732020045242,3.17935,3145.3,3144.7,3.9981557]
[1732020045527,3.97185,3145.5,3144.8,3.17983]
[1732020045528,3.17925,3145.4,3144.8,3.17983]
[1732020045727,3.17938,3145.3,3144.7,3.9981557]
[1732020046036,3.17938,3145.3,3144.7,3.9981457]
[1732020046188,3.97185,3145.5,3144.9,3.17974]
[1732020046548,0.8064,3146.4,3145.1,0.55]
[1732020046759,3.17859,3146.1,3145.5,0.55]
[1732020047041,0.8064,3146.4,3145.5,0.55]
[1732020047042,3.5675404,3146.3,3145.5,0.55]
[1732020047187,3.98434,3146.7,3146.0,3.17857]
[1732020047384,0.8064,3146.7,3146.0,3.17856]
[1732020047626,3.98441,3146.7,3146.1,0.55]
[1732020047840,4.700625,3146.7,3146.1,0.55]
[1732020047984,3.98441,3146.7,3146.1,3.72852]
[1732020048188,0.8064,3146.7,3146.1,0.55]
[1732020048486,0.8064,3146.7,3146.2,3.17843]
[1732020048928,3.17775,3146.9,3146.2,3.17843]
[1732020049269,3.53391299,3146.9,3146.2,3.17843]
[1732020049537,3.17803,3146.6,3146.1,0.55]
[1732020049933,3.17794,3146.7,3146.1,3.72853]
[1732020050225,6.35597,3146.7,3146.1,0.55]
[1732020050524,3.17794,3146.7,3145.9,3.72865]
[1732020050725,0.7851,3147.0,3145.9,0.55]
[1732020051049,0.7851,3147.0,3145.6,3.179]
[1732020051050,3.17845,3146.2,3145.6,3.0]
[1732020051186,3.17871,3146.0,3145.5,0.7881]
[1732020051591,3.17891,3145.8,3145.2,0.7881]
[1732020051828,3.496801,3145.8,3145.2,0.7881]
[1732020052330,3.1791,3145.6,3145.2,0.7881]
[1732020052626,3.17915,3145.5,3145.2,0.7881]
[1732020052936,3.1791,3145.6,3145.2,0.7881]
[1732020053490,3.17896,3145.7,3145.2,0.7881]
[1732020053919,3.0,3146.5,3145.0,3.17958]
[1732020053920,0.8173,3147.7,3146.1,0.7624]
[1732020054129,3.17762,3147.1,3146.2,0.394097]
[1732020054291,3.17762,3147.1,3146.3,3.17832]
[1732020054292,3.17764,3147.0,3146.3,3.17832]
[1732020054622,3.17733,3147.3,3146.4,0.55]
[1732020054828,3.17753,3147.1,3146.4,0.55]
[1732020055017,3.495283,3147.1,3146.4,0.55]
[1732020055226,3.495283,3147.1,3146.3,3.72832]
[1732020055610,3.17764,3147.0,3146.3,3.72832]
[1732020055941,3.1773,3147.4,3146.4,0.7576]
[1732020056141,3.1773,3147.4,3146.6,0.55]
[1732020056494,3.17742,3147.2,3146.6,0.55]
[1732020056920,3.17759,3147.1,3146.6,0.55]
[1732020057121,3.17759,3147.1,3146.5,3.72812]
[1732020057322,3.17726,3147.4,3146.5,3.72812]
[1732020057809,3.17733,3147.3,3146.7,3.1779]
[1732020058299,3.17723,3147.4,3146.5,3.72812]
[1732020058636,3.17723,3147.4,3146.7,3.17792]
[1732020058944,3.17714,3147.5,3146.8,3.17782]
[1732020059295,3.99425,3147.7,3147.0,3.94581]
[1732020059544,3.17702,3147.6,3147.0,3.94581]
[1732020059709,3.17702,3147.6,3147.0,7.12336]
[1732020060036,3.17702,3147.6,3147.1,3.17752]
[1732020060207,0.8173,3147.7,3147.1,3.17752]
[1732020060406,3.17687,3147.8,3147.2,3.17741]
[1732020060992,0.8073,3148.3,3147.3,3.17725]
[1732020060993,3.17678,3147.9,3147.3,3.17725]
[1732020061497,0.06304808,3147.8,3147.5,0.772]
[1732020061700,0.06304808,3147.8,3147.6,0.55]
[1732020061994,0.8147,3148.6,3147.5,0.772]
[1732020062194,6.89801823,3148.9,3147.2,3.94941]
[1732020062195,3.9915,3147.9,3147.2,3.94941]
[1732020062437,3.9915,3147.9,3146.6,3.6670272]
[1732020062438,3.17713,3147.5,3147.0,3.17754]
[1732020062737,3.17713,3147.5,3147.0,0.7672]
[1732020062890,0.06095413,3147.4,3147.0,3.94482]
[1732020063303,0.06095413,3147.4,3147.1,0.55]
[1732020063535,0.06095413,3147.4,3147.1,3.72745]
[1732020063838,3.1771,3147.6,3147.1,0.55]
[1732020064066,0.0609394,3147.3,3147.1,3.72744]
[1732020064344,3.17682,3147.8,3147.3,0.7672]
[1732020065035,3.17699,3147.7,3147.3,0.7672]
[1732020065547,3.17702,3147.6,3147.3,0.7672]
[1732020065690,3.17682,3147.8,3147.3,0.7672]
[1732020066347,3.17667,3148.0,3147.4,0.55]
[1732020066555,3.17662,3148.0,3147.4,3.72716]
[1732020066710,3.17662,3148.0,3147.4,3.72714]
[1732020066913,6.35294,3148.2,3147.6,3.17701]
[1732020067241,3.17644,3148.2,3147.7,0.55]
[1732020067743,0.8216,3148.4,3147.6,0.55]
[1732020067897,3.17678,3147.9,3147.3,0.7672]
[1732020068102,3.17692,3147.7,3147.3,0.7672]
[1732020068331,6.35392,3147.7,3147.3,0.7672]
[1732020068548,3.17692,3147.7,3147.3,0.7672]
[1732020068844,3.17712,3147.5,3146.9,1.3456]
[1732020069051,3.17759,3147.1,3146.9,0.7956]
[1732020069213,3.17759,3147.1,3146.7,0.7956]
[1732020069400,0.06087902,3147.0,3146.7,0.7956]
[1732020070145,3.17736,3147.3,3146.7,3.97351]
[1732020070316,0.06084615,3146.9,3146.7,3.97351]
[1732020070512,3.17736,3147.3,3146.8,0.55]
[1732020070840,3.17751,3147.2,3146.8,0.55]
[1732020071357,0.8201,3147.2,3146.4,3.7575]
[1732020071503,3.17768,3147.0,3146.4,3.93571]
[1732020071709,3.17768,3147.0,3146.4,0.7575]
[1732020072501,3.17773,3146.9,3146.5,0.55]
[1732020072701,3.17783,3146.8,3146.4,0.7575]
[1732020073100,3.17767,3147.0,3146.4,0.7575]
[1732020073318,3.17789,3146.8,3146.4,0.7575]
[1732020073767,3.17785,3146.8,3146.4,0.7575]
[1732020073921,0.8249,3147.5,3146.4,0.7575]
[1732020074243,3.17748,3147.2,3146.7,0.55]
[1732020074817,3.17739,3147.3,3146.7,3.17791]
[1732020075114,3.17739,3147.3,3146.9,0.7865]
[1732020075309,3.17748,3147.2,3146.9,0.7865]
[1732020075504,3.17732,3147.3,3146.9,0.7865]
[1732020076151,4.00208,3147.5,3146.9,0.7865]
[1732020076368,3.17739,3147.3,3146.9,0.7865]
[1732020076505,3.17718,3147.5,3146.9,3.96418]
[1732020076710,3.17732,3147.3,3146.9,0.7865]
[1732020077645,3.17718,3147.5,3146.9,3.96422]
[1732020077957,3.17718,3147.5,3147.0,3.72761]
[1732020078165,3.17703,3147.6,3147.0,6.90515]
[1732020078314,3.17703,3147.6,3147.0,3.72754]
[1732020078660,0.7648,3148.0,3147.0,3.72754]
[1732020078661,3.17712,3147.5,3147.0,3.72754]
[1732020078830,3.17712,3147.5,3147.0,0.55]
[1732020079218,3.17703,3147.6,3147.1,3.17752]
[1732020079565,3.17693,3147.7,3147.0,0.55]
[1732020079726,0.7648,3148.0,3147.2,0.55]
[1732020080059,3.17701,3147.7,3147.2,0.55]
[1732020080265,0.7627,3148.7,3147.5,0.55]
[1732020080468,3.17632,3148.3,3147.7,0.55]
[1732020080751,3.17644,3148.2,3147.7,0.55]
[1732020080949,3.17632,3148.3,3147.7,0.55]
[1732020081121,3.17613,3148.5,3147.7,3.72685]
[1732020081321,3.17617,3148.5,3147.7,4.81178]
[1732020081524,3.17624,3148.4,3147.9,0.55]
[1732020081730,3.17624,3148.4,3147.9,0.998107]
[1732020081919,3.17624,3148.4,3147.8,0.7543]
[1732020082364,3.17624,3148.4,3147.8,3.9311]
[1732020082859,3.17632,3148.3,3147.8,0.7543]
[1732020083356,3.17641,3148.2,3147.5,0.55]
[1732020083539,0.8307,3148.2,3147.4,0.7594]
[1732020083855,3.17704,3147.6,3147.4,0.7594]
[1732020084058,3.17704,3147.6,3146.9,3.17771]
[1732020084059,3.17704,3147.6,3147.0,0.7578]
[1732020084257,3.17723,3147.4,3147.0,0.7578]
[1732020084412,3.1774,3147.3,3147.0,0.7578]
[1732020084618,3.23630397,3147.2,3146.7,0.7578]
[1732020084841,3.17752,3147.1,3146.7,0.7578]
[1732020085045,3.1777,3147.0,3146.7,0.7578]
[1732020085247,3.23653225,3147.0,3146.7,0.7578]
[1732020085461,3.23653225,3147.0,3146.1,3.17851]
[1732020085462,3.17789,3146.8,3146.4,0.7957]
[1732020085621,3.17789,3146.8,3145.9,3.1787]
[1732020085622,3.17803,3146.6,3146.0,0.7957]
[1732020085822,0.05875859,3146.5,3146.1,3.17846]
[1732020086141,3.17793,3146.7,3146.1,3.17846]
[1732020086316,0.05872865,3146.4,3146.1,3.17846]
[1732020086527,3.17795,3146.7,3146.0,4.37176]
[1732020086819,0.8201,3147.3,3146.2,0.8242]
[1732020087024,3.17757,3147.1,3146.4,3.17823]
[1732020087265,0.05881705,3147.0,3146.5,3.17809]
[1732020087425,0.05881705,3147.0,3146.4,3.17823]
[1732020087627,3.17775,3146.9,3146.3,3.55]
[1732020087860,3.17775,3146.9,3146.3,6.72832]
[1732020088045,0.05878758,3146.8,3146.3,6.72832]
[1732020088731,3.17801,3146.7,3146.2,0.8242]
[1732020088936,3.17804,3146.6,3146.2,0.8242]
[1732020089173,3.23679812,3146.6,3146.2,0.8242]
[1732020089671,0.05875812,3146.6,3146.3,0.55]
[1732020089820,0.05875812,3146.6,3146.2,0.8242]
[1732020090176,3.17814,3146.5,3146.2,0.8242]
[1732020090469,3.17844,3146.2,3145.6,0.7524]
[1732020090666,3.17863,3146.0,3145.6,0.7524]
[1732020091166,0.05856079,3145.9,3145.6,0.7524]
[1732020091324,0.05856079,3145.9,3145.5,1.271346]
[1732020092326,3.23737079,3145.9,3145.5,1.271346]
[1732020092568,3.23737079,3145.9,3145.0,3.9752]
[1732020092569,3.17886,3145.8,3145.0,3.9752]
[1732020092769,3.17896,3145.7,3145.2,1.271708]
[1732020092973,0.05851756,3145.7,3145.2,4.451058]
[1732020093134,0.05851756,3145.7,3145.2,5.2936838]
[1732020093478,0.7666,3145.9,3145.2,5.2936838]
[1732020093479,3.9454,3145.9,3145.2,5.2936838]
[1732020093676,0.05848465,3145.6,3145.2,2.1143338]
[1732020093973,3.17896,3145.7,3145.3,0.21316264]
[1732020094452,0.05847925,3145.6,3145.3,0.21316264]
[1732020094659,3.17914,3145.5,3145.3,0.21316264]
[1732020094984,3.17914,3145.5,3145.2,1.271708]
[1732020094985,3.17934,3145.3,3145.2,1.271708]
[1732020095343,3.23775882,3145.3,3145.2,1.271708]
[1732020095670,3.17972,3145.0,3144.6,3.0]
[1732020095882,0.84051882,3145.3,3144.7,1.271911]
[1732020095883,3.17953,3145.2,3144.7,1.271911]
[1732020096025,0.84051882,3145.3,3144.6,0.3803]
[1732020096026,0.05834707,3144.9,3144.6,0.3803]
[1732020096225,0.7821,3145.3,3144.8,3.17984]
[1732020096424,0.05837707,3145.2,3144.6,3.17998]
[1732020096635,3.23782707,3145.2,3144.5,9.01453637]
[1732020096843,3.23782707,3145.2,3144.6,3.18001]
[1732020097383,0.05407227,3145.2,3144.9,3.17969]
[1732020097669,3.9756,3145.6,3145.0,3.1796]
[1732020097842,0.05817904,3145.1,3145.0,3.815544]
[1732020098044,3.17915,3145.5,3144.8,3.17981]
[1732020098259,0.05817904,3145.1,3144.6,3.76344764]
[1732020098582,3.17952,3145.2,3144.4,3.0]
[1732020098583,3.96092,3145.0,3144.4,3.0]
[1732020098868,3.23792073,3144.9,3144.4,3.0]
[1732020099053,3.23792073,3144.9,3144.3,5.268121]
[1732020099054,3.17995,3144.7,3144.3,1.272091]
[1732020099256,3.17995,3144.7,3144.1,3.18049]
[1732020099435,0.058095,3144.6,3144.2,1.272131]
[1732020099627,3.99621,3144.4,3143.8,3.18082]
[1732020099869,3.18054,3144.2,3143.6,3.95629]
[1732020100038,3.18054,3144.2,3143.6,2.047631]
[1732020100239,0.05799419,3144.1,3143.7,3.18095]
[1732020100866,0.05797943,3144.0,3143.7,3.18089]
[1732020101079,0.05797943,3144.0,3143.6,0.7753]
[1732020101240,0.8159,3144.4,3143.6,1.170941]
[1732020101441,0.05792193,3143.9,3143.8,3.18076]
[1732020101645,0.8159,3144.4,3144.0,3.18056]
[1732020101971,3.17997,3144.7,3144.0,3.18056]
[1732020101972,3.94275,3144.8,3144.2,3.18039]
[1732020102168,0.05792593,3144.3,3144.2,3.18039]
[1732020102368,3.94283,3144.8,3144.2,3.18038]
[1732020102680,0.05798494,3144.7,3144.3,3.18032]
[1732020102828,0.05798494,3144.7,3144.4,3.18025]
[1732020103029,0.7629,3144.8,3144.4,3.18025]
[1732020103232,0.05798642,3144.7,3144.2,0.7717]
[1732020103469,0.05798642,3144.7,3144.6,3.18005]
[1732020103971,0.8301,3145.1,3144.7,3.17991]
[1732020104279,0.05803117,3145.0,3144.6,3.17997]
[1732020104569,0.05803117,3145.0,3144.7,3.17994]
[1732020105434,0.05803117,3145.0,3144.9,3.17975]
[1732020105632,0.8255,3145.3,3144.9,3.17975]
[1732020105847,0.05806066,3145.2,3144.7,6.3598]
[1732020106064,0.05806066,3145.2,3144.8,3.17982]
[1732020106272,0.05806066,3145.2,3144.8,3.17978]
[1732020106481,4.00486,3145.3,3144.7,3.17986]
[1732020106769,0.05806901,3145.1,3144.5,3.18011]
[1732020106976,0.05808376,3145.2,3144.2,0.7717]
[1732020107184,0.8255,3145.3,3144.8,3.17976]
[1732020107390,0.8255,3145.3,3144.9,0.317976]
[1732020107604,0.05808326,3145.2,3144.8,3.17976]
[1732020107823,0.8255,3145.3,3144.8,3.17979]
[1732020107962,3.17908,3145.6,3145.0,3.17958]
[1732020108162,3.95538,3145.6,3145.0,3.17958]
[1732020108385,0.7763,3145.6,3145.2,3.17942]
[1732020108615,0.7763,3145.6,3144.8,0.7643]
[1732020108766,0.7763,3145.6,3145.1,3.17949]
[1732020108961,0.05813386,3145.5,3145.2,3.17939]
[1732020109277,0.05813386,3145.5,3145.1,0.317949]
[1732020109499,0.05813386,3145.5,3145.0,3.17958]
[1732020110315,0.05813386,3145.5,3144.8,3.9441]
[1732020110600,0.05813386,3145.5,3144.6,3.0]
[1732020110601,3.1793,3145.4,3144.6,3.0]
[1732020110904,0.05811667,3145.3,3144.6,3.0]
[1732020111121,0.05811667,3145.3,3144.5,3.18009]
[1732020111306,0.7528,3145.2,3144.3,3.18034]
[1732020111477,0.7528,3145.2,3144.4,3.18023]